[Event "Portuguese-ch U14-20 2022"]
[Site "Fatima"]
[Date "2022.04.12"]
[Round "5.15"]
[White "Pina, Tiago"]
[Black "Duque, Raquel Dos Santos"]
[Result "1-0"]
[ECO "C65"]
[WhiteElo "1938"]
[BlackElo "1510"]
[Annotator "RC"]
[PlyCount "65"]
[EventDate "2022.04.10"]
[EventType "swiss"]
[EventCountry "POR"]
[SourceTitle "playchess.com"]
[Source "ChessBase"]
[SourceQuality "1"]
[TimeControl "5400+30"]

1. e4 {[%emt 0:00:02]} e5 {[%emt 0:01:39]} 2. Nf3 {[%emt 0:00:10]} Nc6 {[%emt 0:00:49]} 3. Bb5 {[%emt 0:00:16]} Nf6 {[%emt 0:00:21]} 4. d3 {[%emt 0:00:21]} d6 {[%emt 0:00:16]} 5. O-O {[%emt 0:00:21]} Be7 {[%emt 0:00:08]} 6. c3 {[%emt 0:01:48]} O-O {[%emt 0:00:47]} 7. Re1 {[%emt 0:00:30]} h6 {[%emt 0:00:54]} 8. Nbd2 {[%emt 0:00:54]} Nh7 {[%emt 0:00:22]} 9. d4 {[%emt 0:02:54]} exd4 {[%emt 0:01:35]} 10. cxd4 {[%emt 0:00:10]} Bg4 {[%emt 0:00:39]} 11. h3 {[%emt 0:02:19]} Bxf3 {[%emt 0:01:16]} 12. Nxf3 {[%emt 0:00:12]} Ng5 {[%emt 0:01:00]} 13. Nxg5 {[%emt 0:08:35]} Bxg5 {[%emt 0:01:00]} 14. Bxc6 {[%emt 0:12:14]} bxc6 {[%emt 0:02:57]} 15. f4 {[%emt 0:02:21]} Bh4 {[%emt 0:05:53]} 16. Rf1 {[%emt 0:01:36]} Qb8 {[%emt 0:01:45]} 17. b3 {[%emt 0:15:24]} Qb6 {[%emt 0:02:57]} 18. Be3 {[%emt 0:00:40]} f5 {[%emt 0:07:21]} 19. e5 {[%emt 0:01:40]} dxe5 {[%emt 0:00:13]} 20. fxe5 {[%emt 0:00:11]} Rad8 {[%emt 0:01:02]} 21. Qh5 {[%emt 0:08:50]} f4 {[%emt 0:05:24]} 22. Qxh4 {[%emt 0:00:43]} fxe3 {[%emt 0:00:05]} 23. Rxf8+ {[%emt 0:00:07]} Rxf8 {[%emt 0:00:07]} 24. Re1 {[%emt 0:00:44]} c5 {[%emt 0:03:39]} 25. d5 {[%emt 0:04:22]} e2 {[%emt 0:11:41]} 26. Qc4 {[%emt 0:01:09]} Rf1+ {[%emt 0:05:54]} 27. Rxf1 {[%emt 0:00:07]} exf1=Q+ {[%emt 0:00:13]} 28. Kxf1 {[%emt 0:00:09]} Qb4 {[%emt 0:00:14]} 29. Qxb4 {[%emt 0:00:14]} cxb4 {[%emt 0:00:07]} 30. Ke2 {[%emt 0:00:14]} Kf7 {[%emt 0:00:08]} 31. Kd3 {[%emt 0:00:13]} Kg6 {[%emt 0:00:36]} 32. Kc4 {[%emt 0:00:17]} Kf5 {[%emt 0:00:11]} 33. e6 {[%emt 0:00:05]} 1-0

[Event "Portuguese-ch U14-20 2022"]
[Site "Fatima"]
[Date "2022.04.12"]
[Round "5.16"]
[White "Soares, Luis Francisco Almei"]
[Black "Fonseca, Pedro Miguel Ramos"]
[Result "1-0"]
[ECO "B33"]
[WhiteElo "2000"]
[BlackElo "1788"]
[Annotator "RC"]
[PlyCount "40"]
[EventDate "2022.04.10"]
[EventType "swiss"]
[EventCountry "POR"]
[SourceTitle "playchess.com"]
[Source "ChessBase"]
[SourceQuality "1"]
[TimeControl "5400+30"]

1. e4 c5 2. Nf3 Nc6 3. d4 cxd4 4. Nxd4 Nf6 5. Nc3 e6 6. Ndb5 Bc5 7. Nd6+ Ke7 8. Bf4 e5 9. Nf5+ Kf8 10. Bg5 Qb6 11. Qd2 Bxf2+ 12. Qxf2 Qxb2 13. Qc5+ Kg8 14. Rb1 Nxe4 15. Rxb2 Nxc5 16. Be3 Ne6 17. Bc4 g6 18. Bxe6 dxe6 19. Nd6 Kg7 20. Rf1 f5 1-0

[Event "Portuguese-ch U14-20 2022"]
[Site "Fatima"]
[Date "2022.04.12"]
[Round "5.17"]
[White "Monteiro, Simao Costa"]
[Black "Medeiros, Joao"]
[Result "0-1"]
[ECO "C24"]
[WhiteElo "1346"]
[BlackElo "1331"]
[Annotator "NA RC"]
[PlyCount "114"]
[EventDate "2022.04.10"]
[EventType "swiss"]
[EventCountry "POR"]
[SourceTitle "playchess.com"]
[Source "ChessBase"]
[SourceQuality "1"]
[TimeControl "5400+30"]

1. e4 {[%emt 0:00:40]} e5 {[%emt 0:00:21]} 2. Bc4 {[%emt 0:00:08]} Nf6 {[%emt 0:00:55]} 3. d3 {[%emt 0:00:07]} Bc5 {[%emt 0:00:12]} 4. Nc3 {[%emt 0:00:37]} c6 {[%emt 0:00:28]} 5. Nf3 {[%emt 0:00:54]} d5 {[%emt 0:03:18]} 6. exd5 {[%emt 0:00:30]} cxd5 {[%emt 0:00:04]} 7. Bb5+ {[%emt 0:00:10]} Bd7 {[%emt 0:02:28]} 8. Bxd7+ {[%emt 0:02:36]} Nbxd7 {[%emt 0:00:13]} 9. d4 {[%emt 0:00:54]} exd4 {[%emt 0:21:43]} 10. Nxd4 {[%emt 0:01:12]} O-O {[%emt 0:00:29]} 11. O-O {[%emt 0:00:12]} Nb6 {[%emt 0:16:18]} 12. Bg5 {[%emt 0:03:35]} h6 {[%emt 0:03:10]} 13. Bh4 {[%emt 0:01:55]} g5 {[%emt 0:00:34]} 14. Bg3 {[%emt 0:00:38]} Ne4 {[%emt 0:01:41]} 15. Nf5 {[%emt 0:08:31]} Qf6 {[%emt 0:15:16]} 16. Nxe4 {[%emt 0:02:49]} dxe4 {[%emt 0:00:22]} 17. Qg4 {[%emt 0:04:40]} Rfe8 {[%emt 0:04:06]} 18. Rfe1 {[%emt 0:02:54]} h5 {[%emt 0:00:54]} 19. Qh3 {[%emt 0:01:59]} h4 {[%emt 0:03:13]} 20. Bc7 {[%emt 0:10:22]} Rac8 {[%emt 0:01:05]} 21. Bxb6 {[%emt 0:00:16]} Bxb6 {[%emt 0:00:08]} 22. c3 {[%emt 0:00:36]} Rc5 {[%emt 0:04:44]} 23. Ne3 {[%emt 0:02:38]} Rb5 {[%emt 0:00:43]} 24. Ng4 {[%emt 0:05:52]} Qg6 {[%emt 0:01:23]} 25. Re2 {[%emt 0:01:53]} f5 {[%emt 0:00:48]} 26. Ne3 {[%emt 0:03:02]} Qh7 {[%emt 0:00:49]} 27. g3 {[%emt 0:02:29]} hxg3 {[%emt 0:02:23]} 28. Qxh7+ {[%emt 0:00:34]} Kxh7 {[%emt 0:00:06]} 29. hxg3 {[%emt 0:00:10]} Bxe3 {[%emt 0:00:55]} 30. fxe3 {[%emt 0:01:23]} Rd8 {[%emt 0:00:11]} 31. Rf1 {[%emt 0:00:25]} Kg6 {[%emt 0:00:09]} 32. Kg2 {[%emt 0:01:04]} Rbd5 {[%emt 0:00:05]} 33. Kh3 {[%emt 0:01:38]} g4+ {[%emt 0:00:11]} 34. Kg2 {[%emt 0:00:12]} Kf6 {[%emt 0:00:54]} 35. Rh1 {[%emt 0:00:24]} Kg6 {[%emt 0:00:17]} 36. c4 {[%emt 0:00:40]} Rd2 {[%emt 0:01:54]} 37. Kf2 {[%emt 0:00:10]} Rd1 {[%emt 0:00:53]} 38. Rxd1 {[%emt 0:04:44]} Rxd1 {[%emt 0:00:07]} 39. Re1 {[%emt 0:07:41]} Rd3 {[%emt 0:00:08]} 40. Ke2 {[%emt 0:00:42]} Rd7 {[%emt 0:06:21]} 41. Rh1 {[%emt 0:05:58]} Rc7 {[%emt 0:00:20]} 42. b3 {[%emt 0:03:00]} Kf6 {[%emt 0:01:15]} 43. Kd2 {[%emt 0:00:52]} Rd7+ {[%emt 0:00:27]} 44. Kc2 {[%emt 0:04:06]} Ke5 {[%emt 0:01:11]} 45. Rh6 {[%emt 0:06:20]} Rd3 {[%emt 0:00:18]} 46. Rh7 {[%emt 0:00:08]} Rxe3 {[%emt 0:01:14]} 47. Rxb7 {[%emt 0:00:15]} Rxg3 {[%emt 0:00:31]} 48. Rb5+ {[%emt 0:02:45]} Kf4 {[%emt 0:00:57]} 49. c5 {[%emt 0:00:13]} e3 {[%emt 0:00:14]} 50. c6 {[%emt 0:00:11]} Rg2+ {[%emt 0:00:21]} 51. Kd1 {[%emt 0:03:01]} e2+ {[%emt 0:00:58]} 52. Ke1 {[%emt 0:03:52]} Rg1+ {[%emt 0:00:22]} 53. Kxe2 {[%emt 0:00:09]} Rc1 {[%emt 0:00:07]} 54. Rb4+ {[%emt 0:01:01]} Ke5 {[%emt 0:00:07]} 55. Rc4 {[%emt 0:00:33]} Rxc4 {[%emt 0:00:08]} 56. bxc4 {[%emt 0:00:06]} Kd6 {[%emt 0:00:08]} 57. c5+ {[%emt 0:01:46]} Kxc6 {[%emt 0:00:06]} 0-1

[Event "Portuguese-ch U14-20 2022"]
[Site "Fatima"]
[Date "2022.04.12"]
[Round "5.18"]
[White "Gomes, Guilherme Rodrigues"]
[Black "Goncalves, Samuel Jesus P"]
[Result "0-1"]
[ECO "B01"]
[WhiteElo "1899"]
[BlackElo "1807"]
[Annotator "NA RC"]
[PlyCount "32"]
[EventDate "2022.04.10"]
[EventType "swiss"]
[EventCountry "POR"]
[SourceTitle "playchess.com"]
[Source "ChessBase"]
[SourceQuality "1"]
[TimeControl "5400+30"]

1. e4 {[%emt 0:00:02]} d5 {[%emt 0:18:26]} 2. Qf3 {[%emt 0:01:53]} dxe4 {[%emt 0:00:12]} 3. Qxe4 {[%emt 0:00:20]} Nf6 {[%emt 0:00:07]} 4. Qd3 {[%emt 0:01:24]} Nbd7 {[%emt 0:00:49]} 5. b4 {[%emt 0:02:14]} e5 {[%emt 0:00:11]} 6. Bb2 {[%emt 0:01:42]} Bxb4 {[%emt 0:00:18]} 7. c3 {[%emt 0:07:03]} Bd6 {[%emt 0:00:07]} 8. Nf3 {[%emt 0:01:41]} O-O {[%emt 0:00:08]} 9. Be2 {[%emt 0:10:21]} e4 {[%emt 0:00:08]} 10. Qd4 {[%emt 0:02:59]} exf3 {[%emt 0:00:13]} 11. Bxf3 {[%emt 0:01:03]} Re8+ {[%emt 0:00:14]} 12. Kd1 {[%emt 0:00:27]} Ne5 {[%emt 0:00:18]} 13. c4 {[%emt 0:07:52]} Bf5 {[%emt 0:01:17]} 14. Nc3 {[%emt 0:04:20]} c5 {[%emt 0:00:20]} 15. Qe3 $19 {[%emt 0:02:22]} Nxc4 {[%emt 0:00:09]} 16. Qg5 {[%emt 0:03:07]} Bf4 {[%emt 0:00:45]} 0-1

[Event "Portuguese-ch U14-20 2022"]
[Site "Fatima"]
[Date "2022.04.12"]
[Round "5.19"]
[White "Oliveira, Maria Elisa Ramos Ma"]
[Black "Asseiceiro, Lucas Teixeira"]
[Result "1-0"]
[ECO "D05"]
[WhiteElo "1316"]
[BlackElo "1580"]
[Annotator "NA RC"]
[PlyCount "70"]
[EventDate "2022.04.10"]
[EventType "swiss"]
[EventCountry "POR"]
[SourceTitle "playchess.com"]
[Source "ChessBase"]
[SourceQuality "1"]
[TimeControl "5400+30"]

1. d4 d5 2. Nf3 Nf6 3. e3 e6 4. Bd3 c5 5. b3 Nc6 6. Bb2 Bd6 7. Nbd2 b6 8. O-O O-O 9. a3 Bb7 10. Ne5 Qc7 11. f4 Rac8 12. Rf3 Qe7 13. Rh3 h6 14. Qf3 Kh8 15. Kh1 a5 16. g4 Bxe5 17. fxe5 Nh7 18. Qg3 Ng5 19. Rh5 f6 20. Kg1 fxe5 21. dxc5 e4 22. Rxh6+ Kg8 23. Rg6 Rf7 24. Be2 e5 25. h4 Nh7 26. cxb6 Rf6 27. Rxf6 Nxf6 28. g5 Nd7 29. c4 Qc5 30. Bg4 Rd8 31. Be6+ Kh8 32. Bxd5 Nf8 33. Nxe4 Qxb6 34. Qf3 Bc8 35. g6 Rxd5 1-0

[Event "Portuguese-ch U14-20 2022"]
[Site "Fatima"]
[Date "2022.04.12"]
[Round "5.20"]
[White "Bernardo, Beatriz Nunes"]
[Black "Rodrigues, Jose Pedro Da Costa"]
[Result "1-0"]
[ECO "B13"]
[WhiteElo "1144"]
[BlackElo "1533"]
[Annotator "NA"]
[PlyCount "68"]
[EventDate "2022.04.10"]
[EventType "swiss"]
[EventCountry "POR"]
[SourceTitle "playchess.com"]
[Source "ChessBase"]
[SourceQuality "1"]
[TimeControl "5400+30"]

1. e4 {[%emt 0:00:02]} c6 {[%emt 0:00:05]} 2. d4 {[%emt 0:00:07]} d5 {[%emt 0:00:06]} 3. exd5 {[%emt 0:00:04]} cxd5 {[%emt 0:00:05]} 4. Bd3 {[%emt 0:00:30]} Nc6 {[%emt 0:00:08]} 5. c3 {[%emt 0:00:00]} Nf6 {[%emt 0:00:17]} 6. Bf4 {[%emt 0:00:00]} g6 {[%emt 0:02:52]} 7. Nf3 {[%emt 0:03:44]} Bg7 {[%emt 0:03:41]} 8. O-O {[%emt 0:01:03]} Bg4 {[%emt 0:00:58]} 9. Nbd2 {[%emt 0:01:00]} Nh5 {[%emt 0:06:09]} 10. Be3 {[%emt 0:04:50]} Nf6 {[%emt 0:15:58]} 11. h3 {[%emt 0:01:00]} Bf5 {[%emt 0:00:05]} 12. Bxf5 {[%emt 0:05:54]} gxf5 {[%emt 0:00:57]} 13. Bf4 {[%emt 0:00:40]} Rg8 {[%emt 0:04:28]} 14. Qe2 {[%emt 0:10:47]} a6 {[%emt 0:03:08]} 15. Rfe1 {[%emt 0:02:45]} Ne4 {[%emt 0:02:45]} 16. Ng5 {[%emt 0:12:10]} h6 {[%emt 0:01:29]} 17. Ngxe4 {[%emt 0:01:21]} fxe4 {[%emt 0:00:13]} 18. Nb3 {[%emt 0:01:41]} e5 {[%emt 0:05:34]} 19. Bg3 {[%emt 0:02:17]} exd4 {[%emt 0:02:52]} 20. cxd4 {[%emt 0:00:40]} Nxd4 {[%emt 0:00:29]} 21. Nxd4 {[%emt 0:00:59]} Bxd4 {[%emt 0:00:21]} 22. Kh1 {[%emt 0:01:35]} Qg5 {[%emt 0:03:36]} 23. Rad1 {[%emt 0:04:49]} Bb6 {[%emt 0:00:33]} 24. h4 {[%emt 0:03:10]} Qf5 {[%emt 0:05:50]} 25. Rf1 {[%emt 0:00:50]} Rd8 {[%emt 0:00:58]} 26. Qc2 {[%emt 0:01:01]} Qe6 {[%emt 0:02:56]} 27. Qa4+ {[%emt 0:04:11]} Kf8 {[%emt 0:01:10]} 28. Qb4+ {[%emt 0:00:27]} Kg7 {[%emt 0:00:21]} 29. Be5+ {[%emt 0:04:16]} Kh7 {[%emt 0:00:27]} 30. Bd4 {[%emt 0:02:50]} Qg4 {[%emt 0:02:58]} 31. g3 {[%emt 0:01:01]} Qh3+ {[%emt 0:00:33]} 32. Kg1 {[%emt 0:00:21]} Rxg3+ {[%emt 0:00:46]} 33. fxg3 {[%emt 0:01:31]} Qxg3+ {[%emt 0:00:05]} 34. Kh1 {[%emt 0:00:55]} Qxh4+ 1-0

[Event "Portuguese-ch U14-20 2022"]
[Site "Fatima"]
[Date "2022.04.12"]
[Round "5.22"]
[White "Basilio, Rodrigo"]
[Black "Ribeiro, Gustavo"]
[Result "1/2-1/2"]
[ECO "A35"]
[WhiteElo "1941"]
[BlackElo "1860"]
[Annotator "RC"]
[PlyCount "95"]
[EventDate "2022.04.10"]
[EventType "swiss"]
[EventCountry "POR"]
[SourceTitle "playchess.com"]
[Source "ChessBase"]
[SourceQuality "1"]
[TimeControl "5400+30"]

1. c4 c5 2. Nc3 {[%emt 0:00:06]} Nc6 {[%emt 0:01:56]} 3. Nf3 {[%emt 0:00:05]} d6 {[%emt 0:00:19]} 4. e3 {[%emt 0:00:49]} Bg4 {[%emt 0:00:17]} 5. Be2 {[%emt 0:01:32]} g6 {[%emt 0:01:32]} 6. d4 {[%emt 0:05:00]} cxd4 {[%emt 0:01:10]} 7. exd4 {[%emt 0:00:45]} Bg7 {[%emt 0:00:37]} 8. Be3 {[%emt 0:02:46]} Nf6 {[%emt 0:01:24]} 9. d5 {[%emt 0:05:22]} Bxf3 {[%emt 0:00:28]} 10. Bxf3 {[%emt 0:01:40]} Ne5 {[%emt 0:00:10]} 11. Be2 {[%emt 0:05:15]} Qc8 {[%emt 0:01:14]} 12. Qa4+ {[%emt 0:01:00]} Qd7 {[%emt 0:00:26]} 13. h3 {[%emt 0:03:18]} O-O {[%emt 0:00:33]} 14. f4 {[%emt 0:02:40]} Qxa4 15. Nxa4 {[%emt 0:00:01]} Ned7 {[%emt 0:00:12]} 16. Bf3 {[%emt 0:06:19]} b6 {[%emt 0:03:45]} 17. O-O {[%emt 0:19:26]} Rfc8 {[%emt 0:00:42]} 18. Rac1 {[%emt 0:02:07]} Nc5 {[%emt 0:00:11]} 19. Nxc5 {[%emt 0:15:38]} bxc5 {[%emt 0:00:28]} 20. Bd2 {[%emt 0:03:10]} Nd7 {[%emt 0:01:36]} 21. Bc3 {[%emt 0:00:33]} Rab8 {[%emt 0:01:28]} 22. Rfe1 {[%emt 0:03:46]} Re8 {[%emt 0:01:21]} 23. Re2 {[%emt 0:02:08]} Rb7 {[%emt 0:00:23]} 24. b3 {[%emt 0:01:14]} Bxc3 {[%emt 0:04:13]} 25. Rxc3 {[%emt 0:01:08]} a5 {[%emt 0:01:44]} 26. Rce3 {[%emt 0:00:17]} Nb6 {[%emt 0:00:23]} 27. Be4 {[%emt 0:15:23]} Kg7 {[%emt 0:00:53]} 28. g4 Nd7 {[%emt 0:01:57]} 29. Bc2 {[%emt 0:01:00]} Nf8 {[%emt 0:02:20]} 30. f5 {[%emt 0:00:56]} g5 {[%emt 0:02:32]} 31. h4 {[%emt 0:00:53]} h6 {[%emt 0:00:20]} 32. hxg5 {[%emt 0:00:04]} hxg5 {[%emt 0:00:03]} 33. Rh3 {[%emt 0:01:07]} Nd7 {[%emt 0:01:48]} 34. Rh5 {[%emt 0:00:09]} Ne5 {[%emt 0:01:09]} 35. Rxg5+ {[%emt 0:01:07]} Kf6 {[%emt 0:00:03]} 36. Rh5 {[%emt 0:00:09]} Rg8 {[%emt 0:01:28]} 37. Rh6+ {[%emt 0:00:39]} Kg5 {[%emt 0:00:11]} 38. Rh7 {[%emt 0:01:08]} Kf4 {[%emt 0:01:05]} 39. Re4+ {[%emt 0:00:36]} Kg3 {[%emt 0:00:22]} 40. Bd1 {[%emt 0:00:32]} f6 {[%emt 0:02:19]} 41. Rh2 {[%emt 0:00:30]} Nf3+ {[%emt 0:00:12]} 42. Bxf3 {[%emt 0:00:03]} Kxf3 {[%emt 0:00:05]} 43. Ree2 {[%emt 0:01:00]} Rxg4+ {[%emt 0:00:07]} 44. Kf1 {[%emt 0:00:01]} Rf4 {[%emt 0:00:25]} 45. Ke1 {[%emt 0:00:49]} Rxf5 {[%emt 0:00:37]} 46. Ref2+ {[%emt 0:00:28]} Kg4 {[%emt 0:00:53]} 47. Rhg2+ {[%emt 0:00:07]} Kh3 {[%emt 0:00:05]} 48. Rh2+ {[%emt 0:00:35]} 1/2-1/2

[Event "Portuguese-ch U14-20 2022"]
[Site "Fatima"]
[Date "2022.04.12"]
[Round "5.23"]
[White "Bartolo, Filipe Diogo Correia"]
[Black "Guia, Artur Solovyov Eloy"]
[Result "1/2-1/2"]
[ECO "A30"]
[WhiteElo "1869"]
[BlackElo "1932"]
[Annotator "RC"]
[PlyCount "61"]
[EventDate "2022.04.10"]
[EventType "swiss"]
[EventCountry "POR"]
[SourceTitle "playchess.com"]
[Source "ChessBase"]
[SourceQuality "1"]
[TimeControl "5400+30"]

1. Nf3 {[%emt 0:01:04]} c5 {[%emt 0:00:22]} 2. g3 {[%emt 0:00:11]} b6 {[%emt 0:00:08]} 3. Bg2 {[%emt 0:00:07]} Bb7 {[%emt 0:00:14]} 4. O-O {[%emt 0:02:04]} e6 {[%emt 0:00:14]} 5. c4 {[%emt 0:10:18]} Nf6 {[%emt 0:00:52]} 6. Nc3 {[%emt 0:00:16]} Be7 {[%emt 0:00:43]} 7. d4 {[%emt 0:01:53]} cxd4 {[%emt 0:01:23]} 8. Nxd4 {[%emt 0:00:09]} Bxg2 {[%emt 0:00:14]} 9. Kxg2 {[%emt 0:00:05]} a6 {[%emt 0:02:54]} 10. e4 {[%emt 0:11:03]} Qc7 {[%emt 0:01:04]} 11. Qe2 {[%emt 0:00:07]} Nc6 {[%emt 0:01:03]} 12. Be3 {[%emt 0:01:44]} O-O {[%emt 0:01:18]} 13. Rac1 {[%emt 0:02:21]} d6 {[%emt 0:01:52]} 14. Rfd1 {[%emt 0:03:25]} Rfd8 {[%emt 0:02:28]} 15. f3 {[%emt 0:01:11]} h6 {[%emt 0:01:18]} 16. Nxc6 {[%emt 0:05:54]} Qxc6 {[%emt 0:01:21]} 17. Qf2 {[%emt 0:00:28]} Rab8 {[%emt 0:01:28]} 18. b3 {[%emt 0:01:29]} Rdc8 {[%emt 0:10:54]} 19. Bf4 {[%emt 0:02:41]} Ne8 {[%emt 0:06:10]} 20. Na4 {[%emt 0:02:31]} Qb7 {[%emt 0:06:54]} 21. e5 {[%emt 0:12:46]} Rc6 {[%emt 0:02:28]} 22. exd6 {[%emt 0:17:38]} Bxd6 {[%emt 0:00:35]} 23. Bxd6 {[%emt 0:00:45]} Nxd6 {[%emt 0:00:01]} 24. c5 {[%emt 0:02:22]} bxc5 {[%emt 0:11:37]} 25. Rxc5 {[%emt 0:00:39]} Rbc8 {[%emt 0:02:54]} 26. Rdc1 {[%emt 0:01:01]} Nf5 {[%emt 0:01:12]} 27. Rxc6 {[%emt 0:00:46]} Rxc6 {[%emt 0:00:02]} 28. Rxc6 {[%emt 0:00:06]} Qxc6 {[%emt 0:00:01]} 29. Nb2 {[%emt 0:00:29]} Qc3 {[%emt 0:02:50]} 30. Nc4 {[%emt 0:02:20]} Nd4 {[%emt 0:01:59]} 31. Qe3 {[%emt 0:00:31]} 1/2-1/2

[Event "Portuguese-ch U14-20 2022"]
[Site "Fatima"]
[Date "2022.04.12"]
[Round "5.24"]
[White "Nalivaiko, Maksim"]
[Black "Paiva, Rodrigo Garcia"]
[Result "0-1"]
[ECO "B23"]
[WhiteElo "1439"]
[BlackElo "1667"]
[Annotator "NA RC"]
[PlyCount "94"]
[EventDate "2022.04.10"]
[EventType "swiss"]
[EventCountry "POR"]
[SourceTitle "playchess.com"]
[Source "ChessBase"]
[SourceQuality "1"]
[TimeControl "5400+30"]

1. e4 c5 {[%emt 0:01:40]} 2. Nc3 {[%emt 0:00:13]} e6 {[%emt 0:00:35]} 3. Bc4 {[%emt 0:00:15]} a6 {[%emt 0:00:23]} 4. d3 {[%emt 0:00:09]} b5 {[%emt 0:00:36]} 5. Bb3 {[%emt 0:00:10]} Nc6 {[%emt 0:00:07]} 6. Nge2 {[%emt 0:01:33]} Nf6 {[%emt 0:02:08]} 7. Bg5 {[%emt 0:00:53]} Be7 {[%emt 0:00:42]} 8. Qd2 {[%emt 0:00:46]} Qb6 {[%emt 0:07:07]} 9. a4 {[%emt 0:01:20]} b4 {[%emt 0:00:59]} 10. Nd1 {[%emt 0:00:53]} Na5 {[%emt 0:01:49]} 11. Nc1 {[%emt 0:02:09]} Bb7 12. O-O c4 {[%emt 0:14:50]} 13. Bxf6 {[%emt 0:02:33]} Bxf6 {[%emt 0:01:25]} 14. Bxc4 {[%emt 0:01:47]} Nxc4 {[%emt 0:01:36]} 15. dxc4 {[%emt 0:00:08]} Bxe4 {[%emt 0:00:35]} 16. Nd3 {[%emt 0:00:48]} a5 {[%emt 0:01:26]} 17. Rb1 {[%emt 0:02:11]} O-O {[%emt 0:01:08]} 18. b3 Be7 {[%emt 0:06:11]} 19. Ne3 {[%emt 0:03:36]} f5 {[%emt 0:00:49]} 20. Rfe1 {[%emt 0:05:16]} Bf6 {[%emt 0:06:02]} 21. Qe2 {[%emt 0:02:15]} Bc6 {[%emt 0:08:03]} 22. Rbd1 {[%emt 0:01:51]} Bc3 {[%emt 0:01:16]} 23. Rf1 {[%emt 0:01:01]} f4 {[%emt 0:00:20]} 24. Ng4 {[%emt 0:00:53]} f3 {[%emt 0:00:24]} 25. Qe3 {[%emt 0:00:36]} Bd4 {[%emt 0:01:19]} 26. c5 {[%emt 0:03:21]} Bxe3 {[%emt 0:00:38]} 27. cxb6 fxg2 {[%emt 0:01:30]} 28. Rfe1 {[%emt 0:03:35]} Bxb6 {[%emt 0:03:16]} 29. Nde5 {[%emt 0:01:57]} Rac8 {[%emt 0:06:59]} 30. Nxc6 {[%emt 0:02:57]} Rxc6 {[%emt 0:00:18]} 31. Rxd7 {[%emt 0:01:42]} Rxc2 {[%emt 0:00:35]} 32. Rxe6 {[%emt 0:01:36]} Bxf2+ {[%emt 0:00:28]} 33. Nxf2 {[%emt 0:01:52]} Rcxf2 {[%emt 0:00:29]} 34. Re5 {[%emt 0:03:48]} Rb2 {[%emt 0:00:55]} 35. Rd1 {[%emt 0:00:08]} Rbf2 {[%emt 0:04:11]} 36. Rd7 {[%emt 0:00:56]} Rb2 {[%emt 0:00:11]} 37. Rd1 {[%emt 0:00:48]} Rxb3 {[%emt 0:01:03]} 38. Rxa5 {[%emt 0:00:14]} Rb2 {[%emt 0:00:14]} 39. Ra7 {[%emt 0:00:53]} b3 {[%emt 0:00:49]} 40. a5 {[%emt 0:00:22]} Rbf2 {[%emt 0:01:11]} 41. Rdd7 {[%emt 0:02:19]} R2f7 {[%emt 0:04:08]} 42. Rdb7 {[%emt 0:01:15]} b2 {[%emt 0:00:47]} 43. a6 {[%emt 0:02:19]} b1=Q+ {[%emt 0:00:20]} 44. Kxg2 {[%emt 0:00:24]} Qf1+ {[%emt 0:00:17]} 45. Kg3 {[%emt 0:00:54]} Qf3+ {[%emt 0:00:07]} 46. Kh4 {[%emt 0:00:20]} Rf4+ {[%emt 0:00:07]} 47. Kg5 {[%emt 0:00:27]} R8f5# {[%emt 0:00:11]} 0-1

[Event "Portuguese-ch U14-20 2022"]
[Site "Fatima"]
[Date "2022.04.12"]
[Round "5.25"]
[White "Coelho, Goncalo Cavaz"]
[Black "Afonso, Joao Pedro"]
[Result "1-0"]
[ECO "B12"]
[WhiteElo "1680"]
[BlackElo "1501"]
[Annotator "NA RC"]
[PlyCount "89"]
[EventDate "2022.04.10"]
[EventType "swiss"]
[EventCountry "POR"]
[SourceTitle "playchess.com"]
[Source "ChessBase"]
[SourceQuality "1"]
[TimeControl "5400+30"]

1. e4 {[%emt 0:00:03]} c6 {[%emt 0:00:02]} 2. d4 {[%emt 0:00:06]} d5 {[%emt 0:00:03]} 3. e5 {[%emt 0:00:06]} c5 {[%emt 0:00:02]} 4. Nf3 {[%emt 0:00:09]} cxd4 {[%emt 0:01:22]} 5. Nxd4 {[%emt 0:00:11]} Nc6 {[%emt 0:00:42]} 6. Bb5 {[%emt 0:00:11]} Bd7 {[%emt 0:02:13]} 7. e6 {[%emt 0:00:56]} fxe6 {[%emt 0:01:07]} 8. Bxc6 {[%emt 0:04:17]} bxc6 {[%emt 0:01:31]} 9. Qh5+ {[%emt 0:01:25]} g6 {[%emt 0:00:11]} 10. Qe5 {[%emt 0:00:14]} Nf6 {[%emt 0:00:55]} 11. Nxe6 {[%emt 0:08:31]} Bxe6 {[%emt 0:01:36]} 12. Qxe6 {[%emt 0:00:11]} Qd7 {[%emt 0:00:36]} 13. Qxd7+ {[%emt 0:00:35]} Nxd7 {[%emt 0:00:04]} 14. f4 {[%emt 0:01:13]} Bg7 {[%emt 0:00:33]} 15. c3 {[%emt 0:00:15]} O-O {[%emt 0:01:44]} 16. O-O e5 {[%emt 0:06:20]} 17. Be3 {[%emt 0:03:03]} d4 {[%emt 0:05:19]} 18. cxd4 {[%emt 0:04:47]} exf4 {[%emt 0:20:17]} 19. Bf2 {[%emt 0:00:11]} Rab8 {[%emt 0:03:24]} 20. Nd2 {[%emt 0:05:58]} Rxb2 {[%emt 0:04:48]} 21. Nb3 {[%emt 0:00:12]} Nf6 {[%emt 0:16:33]} 22. Rfb1 {[%emt 0:00:59]} Rxb1+ {[%emt 0:01:15]} 23. Rxb1 {[%emt 0:00:08]} Ne4 {[%emt 0:00:54]} 24. Rc1 {[%emt 0:00:36]} Rc8 {[%emt 0:11:57]} 25. d5 {[%emt 0:07:30]} Nc3 {[%emt 0:00:15]} 26. Rc2 Nxd5 {[%emt 0:04:08]} 27. Bxa7 {[%emt 0:02:48]} Ra8 {[%emt 0:00:34]} 28. Bc5 {[%emt 0:07:13]} g5 {[%emt 0:01:04]} 29. Nd2 {[%emt 0:03:03]} Nc3 {[%emt 0:02:58]} 30. a3 {[%emt 0:00:42]} Rd8 31. Bb4 {[%emt 0:12:17]} Ne2+ {[%emt 0:05:16]} 32. Kf1 {[%emt 0:01:51]} Nd4 {[%emt 0:00:07]} 33. Rc4 {[%emt 0:01:33]} Re8 {[%emt 0:01:32]} 34. Bc3 {[%emt 0:01:43]} Nc2 {[%emt 0:01:31]} 35. Rxc6 {[%emt 0:05:57]} Nxa3 {[%emt 0:00:15]} 36. Bxg7 {[%emt 0:00:50]} Kxg7 {[%emt 0:00:03]} 37. Rc3 {[%emt 0:01:35]} Nb5 {[%emt 0:00:17]} 38. Rc5 {[%emt 0:00:10]} Nd6 {[%emt 0:01:28]} 39. Rxg5+ {[%emt 0:00:37]} Kf6 {[%emt 0:00:11]} 40. Ra5 {[%emt 0:02:20]} Nf5 {[%emt 0:00:39]} 41. Ra6+ {[%emt 0:00:40]} Kg5 {[%emt 0:02:42]} 42. Nf3+ {[%emt 0:00:46]} Kg4 {[%emt 0:00:23]} 43. Kf2 {[%emt 0:00:43]} Ne3 {[%emt 0:00:46]} 44. Ra5 {[%emt 0:00:52]} Nf5 {[%emt 0:02:20]} 45. h3+ {[%emt 0:00:15]} 1-0

[Event "Portuguese-ch U14-20 2022"]
[Site "Fatima"]
[Date "2022.04.12"]
[Round "5.26"]
[White "Goncalves, Ruan Lucas Alves"]
[Black "Almeida, Joao Pedro Dias"]
[Result "1-0"]
[ECO "C50"]
[WhiteElo "1963"]
[BlackElo "1508"]
[Annotator "RC"]
[PlyCount "59"]
[EventDate "2022.04.10"]
[EventType "swiss"]
[EventCountry "POR"]
[SourceTitle "playchess.com"]
[Source "ChessBase"]
[SourceQuality "1"]
[TimeControl "5400+30"]

1. e4 e5 2. Nf3 Nf6 3. Nc3 Nc6 4. Bc4 Bc5 5. d3 h6 6. Ne2 d6 7. c3 O-O 8. O-O a6 9. a4 Be6 10. Bb3 Ba7 11. Ng3 d5 12. Qc2 dxe4 13. dxe4 Qe7 14. Be3 Bxe3 15. fxe3 Ng4 16. Rae1 Bxb3 17. Qxb3 Qc5 18. Qc2 Rad8 19. Qe2 Rd7 20. Nh4 f5 21. Ngxf5 Nf6 22. Qf3 Qc4 23. Qg3 Qxe4 24. Nxh6+ Kh7 25. Rf5 gxh6 26. Qg6+ Kh8 27. Rxf6 Qxg6 28. Nxg6+ Kg7 29. Nxf8 Rd8 30. Rxc6 1-0